[Event "*** Titled Tuesday Blitz"]
[Site "Chess.com"]
[Date "2020.05.26"]
[Round "9"]
[White "witcher8"]
[Black "albi1999"]
[Result "1-0"]
[WhiteElo "2464"]
[BlackElo "2603"]
[TimeControl "180+1"]
[EndTime "11:52:52 PDT"]
[Termination "witcher8 won by resignation"]

1. e4 {[%clk 0:03:00.9]} 1... c6 {[%clk 0:02:57.3]} 2. d4 {[%clk 0:03:00.4]}
2... d5 {[%clk 0:02:58.2]} 3. e5 {[%clk 0:03:00.7]} 3... Bf5 {[%clk 0:02:57.7]}
4. h4 {[%clk 0:03:00.5]} 4... h5 {[%clk 0:02:56]} 5. c4 {[%clk 0:02:59.9]} 5...
e6 {[%clk 0:02:56]} 6. Bg5 {[%clk 0:02:58.5]} 6... Qb6 {[%clk 0:02:55.2]} 7. Qd2
{[%clk 0:02:58.6]} 7... Ne7 {[%clk 0:02:42.5]} 8. Nc3 {[%clk 0:02:55.4]} 8...
Nd7 {[%clk 0:02:33.6]} 9. Nge2 {[%clk 0:02:41.3]} 9... dxc4 {[%clk 0:02:21.1]}
10. Ng3 {[%clk 0:02:41.1]} 10... Bd3 {[%clk 0:02:18.8]} 11. Bxd3 {[%clk
0:02:38.6]} 11... cxd3 {[%clk 0:02:19.7]} 12. Qxd3 {[%clk 0:02:34.7]} 12... Nd5
{[%clk 0:02:16.1]} 13. Nge4 {[%clk 0:02:28.8]} 13... Nb4 {[%clk 0:01:43.8]} 14.
Qd2 {[%clk 0:02:02.3]} 14... Qa6 {[%clk 0:01:42.6]} 15. Rd1 {[%clk 0:01:50.2]}
15... Nb6 {[%clk 0:01:35.7]} 16. a3 {[%clk 0:01:28.6]} 16... N4d5 {[%clk
0:01:34.5]} 17. g3 {[%clk 0:01:17.9]} 17... Rc8 {[%clk 0:01:22.9]} 18. f3 {[%clk
0:01:09.2]} 18... Qc4 {[%clk 0:01:19.5]} 19. Kf2 {[%clk 0:01:04.4]} 19... Nxc3
{[%clk 0:01:18.6]} 20. Nxc3 {[%clk 0:00:57.2]} 20... Nd5 {[%clk 0:01:17.1]} 21.
Ne4 {[%clk 0:00:54.2]} 21... Qb5 {[%clk 0:01:03.7]} 22. Rc1 {[%clk 0:00:47.2]}
22... a5 {[%clk 0:00:59.5]} 23. Rhd1 {[%clk 0:00:43.3]} 23... Qb6 {[%clk
0:00:59.4]} 24. Kg2 {[%clk 0:00:39.6]} 24... Kd7 {[%clk 0:00:55.2]} 25. Kh3
{[%clk 0:00:23.2]} 25... Ra8 {[%clk 0:00:48.7]} 26. Rc4 {[%clk 0:00:19.9]} 26...
Qb3 {[%clk 0:00:48]} 27. Qe2 {[%clk 0:00:16.5]} 27... Ra6 {[%clk 0:00:45.4]} 28.
Rdc1 {[%clk 0:00:16.1]} 28... Rb6 {[%clk 0:00:44.5]} 29. R1c2 {[%clk 0:00:15.5]}
29... Qb5 {[%clk 0:00:43]} 30. f4 {[%clk 0:00:15.1]} 30... Ra6 {[%clk
0:00:41.8]} 31. Qf3 {[%clk 0:00:15]} 31... Rb6 {[%clk 0:00:35]} 32. f5 {[%clk
0:00:14.4]} 32... Qb3 {[%clk 0:00:31.1]} 33. fxe6+ {[%clk 0:00:13.9]} 33... Kxe6
{[%clk 0:00:31.5]} 34. Qe2 {[%clk 0:00:07.2]} 34... Be7 {[%clk 0:00:25.2]} 35.
Bxe7 {[%clk 0:00:06.8]} 35... Nf4+ {[%clk 0:00:25.4]} 36. Kh2 {[%clk 0:00:03.8]}
36... Nxe2 {[%clk 0:00:25.5]} 37. Bd6 {[%clk 0:00:02.6]} 37... Qf3 {[%clk
0:00:20.4]} 38. Ng5+ {[%clk 0:00:02.4]} 38... Kf5 {[%clk 0:00:20.8]} 39. Nxf3
{[%clk 0:00:03.3]} 39... Ke4 {[%clk 0:00:19.3]} 40. Rxe2+ {[%clk 0:00:03.3]}
40... Kxf3 {[%clk 0:00:19.6]} 41. Rec2 {[%clk 0:00:03.5]} 41... Ke4 {[%clk
0:00:19.4]} 42. Re2+ {[%clk 0:00:03]} 42... Kd3 {[%clk 0:00:19.1]} 43. Rec2
{[%clk 0:00:03.9]} 43... Ke4 {[%clk 0:00:19.2]} 44. Kg2 {[%clk 0:00:04.2]} 44...
Rb3 {[%clk 0:00:18.9]} 45. Bc5 {[%clk 0:00:04.3]} 45... Kd5 {[%clk 0:00:18.8]}
46. R4c3 {[%clk 0:00:04.6]} 46... Rb5 {[%clk 0:00:18.6]} 47. a4 {[%clk
0:00:04.5]} 47... Rxc5 {[%clk 0:00:15.7]} 48. Rxc5+ {[%clk 0:00:04.3]} 48...
Kxd4 {[%clk 0:00:16.6]} 49. Rxa5 {[%clk 0:00:04.6]} 49... b6 {[%clk 0:00:15.9]}
50. Ra6 {[%clk 0:00:04.7]} 50... Rb8 {[%clk 0:00:16.1]} 51. Rxc6 {[%clk
0:00:04.8]} 51... Kxe5 {[%clk 0:00:16]} 52. Raxb6 {[%clk 0:00:05.2]} 52... Rd8
{[%clk 0:00:16.9]} 53. Rc5+ {[%clk 0:00:05.5]} 53... Kd4 {[%clk 0:00:16.8]} 54.
Rc3 {[%clk 0:00:05.5]} 54... Kd5 {[%clk 0:00:16.5]} 55. Rb4 {[%clk 0:00:05.6]}
1-0

[Event "*** Titled Tuesday Blitz"]
[Site "Chess.com"]
[Date "2020.05.26"]
[Round "9"]
[White "realmadridtv"]
[Black "ulkaf961"]
[Result "1/2-1/2"]
[WhiteElo "2443"]
[BlackElo "2224"]
[TimeControl "180+1"]
[EndTime "11:52:52 PDT"]
[Termination "Game drawn - insufficient material"]

1. e4 {[%clk 0:03:00.9]} 1... e6 {[%clk 0:02:59.7]} 2. d4 {[%clk 0:03:01.1]}
2... d5 {[%clk 0:02:59.6]} 3. Nc3 {[%clk 0:03:01.8]} 3... Nf6 {[%clk 0:02:59.4]}
4. Bg5 {[%clk 0:03:01.4]} 4... Be7 {[%clk 0:02:59.4]} 5. e5 {[%clk 0:03:01.9]}
5... Nfd7 {[%clk 0:02:59.9]} 6. Bxe7 {[%clk 0:03:02.8]} 6... Qxe7 {[%clk
0:03:00.4]} 7. f4 {[%clk 0:03:03.7]} 7... a6 {[%clk 0:03:01]} 8. Nf3 {[%clk
0:03:03.4]} 8... c5 {[%clk 0:03:01.6]} 9. dxc5 {[%clk 0:03:04.3]} 9... Nxc5
{[%clk 0:02:59.9]} 10. Bd3 {[%clk 0:03:04.7]} 10... Nc6 {[%clk 0:02:59.8]} 11.
Qe2 {[%clk 0:03:05.2]} 11... b5 {[%clk 0:02:59.4]} 12. O-O {[%clk 0:03:04.1]}
12... b4 {[%clk 0:02:55]} 13. Nd1 {[%clk 0:03:03.6]} 13... a5 {[%clk 0:02:55.2]}
14. Bb5 {[%clk 0:03:01.1]} 14... Bd7 {[%clk 0:02:47.2]} 15. a4 {[%clk
0:02:55.8]} 15... O-O {[%clk 0:02:41.8]} 16. Nf2 {[%clk 0:02:55.8]} 16... Rfc8
{[%clk 0:02:18.6]} 17. Rac1 {[%clk 0:02:50.6]} 17... Na7 {[%clk 0:02:15.4]} 18.
Bxd7 {[%clk 0:02:49.6]} 18... Qxd7 {[%clk 0:02:15.3]} 19. Ng4 {[%clk 0:02:47.1]}
19... Ne4 {[%clk 0:02:10.2]} 20. Ng5 {[%clk 0:02:43.7]} 20... Nxg5 {[%clk
0:02:01.6]} 21. fxg5 {[%clk 0:02:44.6]} 21... Rc4 {[%clk 0:01:58.5]} 22. Qf3
{[%clk 0:02:36.4]} 22... Nc6 {[%clk 0:01:57.6]} 23. Qg3 {[%clk 0:02:31.4]} 23...
Rxg4 {[%clk 0:01:52.7]} 24. Qxg4 {[%clk 0:02:31]} 24... Nxe5 {[%clk 0:01:53.3]}
25. Qf4 {[%clk 0:02:27.9]} 25... Ng6 {[%clk 0:01:48.6]} 26. Qf2 {[%clk
0:02:26.4]} 26... Rf8 {[%clk 0:01:46.9]} 27. c3 {[%clk 0:02:24]} 27... Qxa4
{[%clk 0:01:32.7]} 28. cxb4 {[%clk 0:02:21.9]} 28... Qxb4 {[%clk 0:01:32.8]} 29.
Rc7 {[%clk 0:02:10.5]} 29... Ne5 {[%clk 0:01:32]} 30. h3 {[%clk 0:02:03.7]}
30... d4 {[%clk 0:01:26.5]} 31. Qe2 {[%clk 0:01:58]} 31... Qd6 {[%clk
0:01:25.6]} 32. Qc2 {[%clk 0:01:37.3]} 32... d3 {[%clk 0:00:53.7]} 33. Qc5
{[%clk 0:01:35.5]} 33... Qxc5+ {[%clk 0:00:53.7]} 34. Rxc5 {[%clk 0:01:36.4]}
34... f6 {[%clk 0:00:54]} 35. Rxa5 {[%clk 0:01:30]} 35... d2 {[%clk 0:00:47.2]}
36. Raa1 {[%clk 0:01:22.8]} 36... Rd8 {[%clk 0:00:45.7]} 37. gxf6 {[%clk
0:01:20.9]} 37... gxf6 {[%clk 0:00:45]} 38. b3 {[%clk 0:01:21.4]} 38... Nd3
{[%clk 0:00:39.7]} 39. Ra2 {[%clk 0:01:20.1]} 39... Nb4 {[%clk 0:00:35.9]} 40.
Raa1 {[%clk 0:01:15.5]} 40... Nc2 {[%clk 0:00:35.4]} 41. Rad1 {[%clk 0:01:07.6]}
41... Ne3 {[%clk 0:00:35.4]} 42. Kf2 {[%clk 0:01:04.6]} 42... Nxd1+ {[%clk
0:00:33.9]} 43. Rxd1 {[%clk 0:01:04.4]} 43... Rd3 {[%clk 0:00:33.8]} 44. b4
{[%clk 0:01:02.7]} 44... Rb3 {[%clk 0:00:34]} 45. Rxd2 {[%clk 0:01:02.7]} 45...
Rxb4 {[%clk 0:00:34.6]} 46. Rd7 {[%clk 0:01:02.5]} 46... Rb3 {[%clk 0:00:30.8]}
47. Re7 {[%clk 0:01:02.3]} 47... e5 {[%clk 0:00:30.9]} 48. g3 {[%clk 0:00:56]}
48... Ra3 {[%clk 0:00:30.2]} 49. h4 {[%clk 0:00:53.6]} 49... h5 {[%clk
0:00:28.7]} 50. Rb7 {[%clk 0:00:47.8]} 50... f5 {[%clk 0:00:27.3]} 51. Rb5
{[%clk 0:00:44.9]} 51... Ra2+ {[%clk 0:00:25.8]} 52. Kf1 {[%clk 0:00:39.8]}
52... f4 {[%clk 0:00:20.6]} 53. Rxe5 {[%clk 0:00:35.7]} 53... fxg3 {[%clk
0:00:20.2]} 54. Rxh5 {[%clk 0:00:35.6]} 54... Kf7 {[%clk 0:00:18.4]} 55. Rg5
{[%clk 0:00:34]} 55... Rh2 {[%clk 0:00:18.3]} 56. h5 {[%clk 0:00:31.2]} 56...
Kf6 {[%clk 0:00:18.1]} 57. Rxg3 {[%clk 0:00:27.8]} 57... Rxh5 {[%clk 0:00:16.7]}
58. Rf3+ {[%clk 0:00:27.5]} 58... Rf5 {[%clk 0:00:16.7]} 59. Rf2 {[%clk
0:00:27.2]} 59... Rxf2+ {[%clk 0:00:16.4]} 60. Kxf2 {[%clk 0:00:27.6]} 1/2-1/2

[Event "*** Titled Tuesday Blitz"]
[Site "Chess.com"]
[Date "2020.05.26"]
[Round "9"]
[White "Kensei26"]
[Black "WonderChampion"]
[Result "0-1"]
[WhiteElo "2224"]
[BlackElo "1937"]
[TimeControl "180+1"]
[EndTime "11:52:52 PDT"]
[Termination "WonderChampion won by resignation"]

1. e4 {[%clk 0:03:00.9]} 1... c5 {[%clk 0:02:59.3]} 2. Nc3 {[%clk 0:03:00.2]}
2... g6 {[%clk 0:02:59]} 3. Nge2 {[%clk 0:02:56.2]} 3... Bg7 {[%clk 0:02:58.5]}
4. d4 {[%clk 0:02:56.6]} 4... cxd4 {[%clk 0:02:58]} 5. Nxd4 {[%clk 0:02:57.5]}
5... Nc6 {[%clk 0:02:58.3]} 6. Nde2 {[%clk 0:02:57]} 6... Nf6 {[%clk 0:02:57.3]}
7. g3 {[%clk 0:02:57.4]} 7... d6 {[%clk 0:02:56.7]} 8. Bg2 {[%clk 0:02:57.4]}
8... O-O {[%clk 0:02:57.6]} 9. O-O {[%clk 0:02:52.7]} 9... Bg4 {[%clk
0:02:51.4]} 10. h3 {[%clk 0:02:52.1]} 10... Be6 {[%clk 0:02:47.8]} 11. Nf4
{[%clk 0:02:41.9]} 11... Qd7 {[%clk 0:02:45.8]} 12. Ncd5 {[%clk 0:02:38.9]}
12... Bxd5 {[%clk 0:02:20.3]} 13. Nxd5 {[%clk 0:02:37.6]} 13... Nxd5 {[%clk
0:02:18.8]} 14. exd5 {[%clk 0:02:36.3]} 14... Nd8 {[%clk 0:02:18.2]} 15. c3
{[%clk 0:02:25.1]} 15... b6 {[%clk 0:02:15.3]} 16. Re1 {[%clk 0:02:20.4]} 16...
Nb7 {[%clk 0:02:15.1]} 17. Bg5 {[%clk 0:02:20]} 17... Rfe8 {[%clk 0:02:10.5]}
18. Qd2 {[%clk 0:02:17.5]} 18... Rac8 {[%clk 0:02:03.1]} 19. Re2 {[%clk
0:02:15.6]} 19... Bf6 {[%clk 0:01:58.7]} 20. h4 {[%clk 0:02:12.4]} 20... h5
{[%clk 0:01:51.2]} 21. Rd1 {[%clk 0:02:10.5]} 21... Qf5 {[%clk 0:01:42.2]} 22.
Be4 {[%clk 0:02:07.2]} 22... Qg4 {[%clk 0:01:24.1]} 23. Rde1 {[%clk 0:02:03.5]}
23... Bxg5 {[%clk 0:01:22.9]} 24. Qxg5 {[%clk 0:02:01.5]} 24... Qxg5 {[%clk
0:01:23]} 25. hxg5 {[%clk 0:02:02.4]} 25... Nc5 {[%clk 0:01:19.8]} 26. Bb1
{[%clk 0:01:54.7]} 26... Nd7 {[%clk 0:01:18.8]} 27. f4 {[%clk 0:01:53.8]} 27...
Kf8 {[%clk 0:01:14.8]} 28. Kf2 {[%clk 0:01:51.4]} 28... Nc5 {[%clk 0:01:08.8]}
29. Bc2 {[%clk 0:01:48.1]} 29... b5 {[%clk 0:01:02.7]} 30. Kf3 {[%clk
0:01:46.7]} 30... a5 {[%clk 0:01:02]} 31. a3 {[%clk 0:01:44.4]} 31... Na6 {[%clk
0:00:59.1]} 32. Bd3 {[%clk 0:01:43.3]} 32... Rb8 {[%clk 0:00:58.2]} 33. g4
{[%clk 0:01:40.2]} 33... hxg4+ {[%clk 0:00:57]} 34. Kxg4 {[%clk 0:01:41.1]}
34... Nc5 {[%clk 0:00:57.1]} 35. Bc2 {[%clk 0:01:41.1]} 35... b4 {[%clk
0:00:56.5]} 36. axb4 {[%clk 0:01:41.2]} 36... axb4 {[%clk 0:00:56.8]} 37. c4
{[%clk 0:01:32.7]} 37... b3 {[%clk 0:00:55.5]} 38. Bb1 {[%clk 0:01:29.9]} 38...
Na4 {[%clk 0:00:55.6]} 39. f5 {[%clk 0:01:28.2]} 39... gxf5+ {[%clk 0:00:50.2]}
40. Kxf5 {[%clk 0:01:28.3]} 40... Rb4 {[%clk 0:00:49]} 41. g6 {[%clk 0:01:22.9]}
41... Rxc4 {[%clk 0:00:48.1]} 42. gxf7 {[%clk 0:01:20.7]} 42... Kxf7 {[%clk
0:00:47.8]} 43. Rg1 {[%clk 0:01:10.3]} 43... Nc5 {[%clk 0:00:45.1]} 44. Rh2
{[%clk 0:00:56.1]} 44... Rf8 {[%clk 0:00:42.9]} 45. Rh7+ {[%clk 0:00:40.6]}
45... Ke8+ {[%clk 0:00:42.7]} 46. Kg6 {[%clk 0:00:36.6]} 46... Rd4 {[%clk
0:00:34.7]} 47. Bf5 {[%clk 0:00:30.7]} 47... Rg8+ {[%clk 0:00:27.5]} 48. Rg7
{[%clk 0:00:30.1]} 48... Rxg7+ {[%clk 0:00:27.9]} 49. Kxg7 {[%clk 0:00:31]}
49... Rxd5 {[%clk 0:00:28.5]} 50. Bg6+ {[%clk 0:00:29.7]} 50... Kd7 {[%clk
0:00:28.1]} 51. Rg3 {[%clk 0:00:29.3]} 51... Rd2 {[%clk 0:00:27.5]} 52. Bf5+
{[%clk 0:00:28.2]} 52... Kc6 {[%clk 0:00:26]} 53. Kf7 {[%clk 0:00:27.3]} 53...
Rxb2 {[%clk 0:00:25.8]} 54. Kxe7 {[%clk 0:00:26.7]} 54... Re2+ {[%clk
0:00:24.9]} 55. Kd8 {[%clk 0:00:24.4]} 55... b2 {[%clk 0:00:25]} 56. Ra3 {[%clk
0:00:20.7]} 56... Re1 {[%clk 0:00:22.2]} 57. Bg6 {[%clk 0:00:18.6]} 57... b1=Q
{[%clk 0:00:21.5]} 58. Bxb1 {[%clk 0:00:19.2]} 58... Rxb1 {[%clk 0:00:21.9]} 59.
Ke8 {[%clk 0:00:19.2]} 59... d5 {[%clk 0:00:22]} 60. Ke7 {[%clk 0:00:18.5]}
60... d4 {[%clk 0:00:21.4]} 61. Kf6 {[%clk 0:00:19.2]} 61... d3 {[%clk
0:00:21.7]} 62. Ke5 {[%clk 0:00:19.1]} 62... d2 {[%clk 0:00:21]} 63. Ra2 {[%clk
0:00:17.8]} 63... d1=Q {[%clk 0:00:20.2]} 0-1

[Event "*** Titled Tuesday Blitz"]
[Site "Chess.com"]
[Date "2020.05.26"]
[Round "9"]
[White "okriak"]
[Black "Dinamo81"]
[Result "0-1"]
[WhiteElo "2713"]
[BlackElo "2641"]
[TimeControl "180+1"]
[EndTime "11:52:53 PDT"]
[Termination "Dinamo81 won by resignation"]

1. e4 {[%clk 0:03:00.9]} 1... e6 {[%clk 0:02:58.5]} 2. d4 {[%clk 0:02:59.1]}
2... d5 {[%clk 0:02:58.4]} 3. Nd2 {[%clk 0:02:59.8]} 3... c5 {[%clk 0:02:57.2]}
4. exd5 {[%clk 0:02:59.3]} 4... exd5 {[%clk 0:02:57.7]} 5. Ngf3 {[%clk
0:02:58.8]} 5... Nc6 {[%clk 0:02:58.3]} 6. Bb5 {[%clk 0:02:58.7]} 6... cxd4
{[%clk 0:02:58.8]} 7. O-O {[%clk 0:02:57.8]} 7... Bd6 {[%clk 0:02:58.4]} 8. Nb3
{[%clk 0:02:54.8]} 8... Ne7 {[%clk 0:02:58.8]} 9. Nbxd4 {[%clk 0:02:54.3]} 9...
O-O {[%clk 0:02:59.1]} 10. Bg5 {[%clk 0:02:48.9]} 10... Qc7 {[%clk 0:02:48.4]}
11. c3 {[%clk 0:02:36.8]} 11... Bg4 {[%clk 0:02:41.7]} 12. Be2 {[%clk
0:02:33.1]} 12... Nxd4 {[%clk 0:02:32.5]} 13. Qxd4 {[%clk 0:02:32.4]} 13... Bxf3
{[%clk 0:02:30.4]} 14. Bxf3 {[%clk 0:02:24.8]} 14... Bxh2+ {[%clk 0:02:29.7]}
15. Kh1 {[%clk 0:02:25]} 15... Be5 {[%clk 0:02:28.6]} 16. Qg4 {[%clk 0:02:13]}
16... f6 {[%clk 0:02:13.6]} 17. Qe6+ {[%clk 0:02:12]} 17... Kh8 {[%clk
0:02:11.6]} 18. Be3 {[%clk 0:02:12]} 18... Rad8 {[%clk 0:01:54.8]} 19. Rad1
{[%clk 0:02:09.1]} 19... Rd6 {[%clk 0:01:51.3]} 20. Qh3 {[%clk 0:02:08.6]} 20...
Rfd8 {[%clk 0:01:46.8]} 21. g3 {[%clk 0:02:00.6]} 21... d4 {[%clk 0:01:28.3]}
22. cxd4 {[%clk 0:02:00]} 22... Bxd4 {[%clk 0:01:27.5]} 23. Bf4 {[%clk
0:01:59.7]} 23... Be5 {[%clk 0:01:25.6]} 24. Bxe5 {[%clk 0:01:58]} 24... fxe5
{[%clk 0:01:25]} 25. Rxd6 {[%clk 0:01:49.9]} 25... Rxd6 {[%clk 0:01:23.6]} 26.
Kg2 {[%clk 0:01:48.2]} 26... Ng8 {[%clk 0:01:14.5]} 27. Re1 {[%clk 0:01:44.1]}
27... Rd2 {[%clk 0:01:07.2]} 28. Re2 {[%clk 0:01:28]} 28... Rxe2 {[%clk
0:01:05.2]} 29. Bxe2 {[%clk 0:01:27.9]} 29... Nf6 {[%clk 0:01:02.9]} 30. Qe6
{[%clk 0:01:13.9]} 30... Qc6+ {[%clk 0:01:02.4]} 31. Qxc6 {[%clk 0:01:13.5]}
31... bxc6 {[%clk 0:01:03.3]} 32. Kf3 {[%clk 0:01:13.3]} 32... Kg8 {[%clk
0:01:00.9]} 33. Ke3 {[%clk 0:01:13.5]} 33... Kf7 {[%clk 0:00:56.4]} 34. Bf3
{[%clk 0:01:13.5]} 34... Nd5+ {[%clk 0:00:55.9]} 35. Kd3 {[%clk 0:01:12.6]}
35... Ke6 {[%clk 0:00:55.4]} 36. Kc4 {[%clk 0:01:11.7]} 36... Kd6 {[%clk
0:00:55.7]} 37. b4 {[%clk 0:01:11.4]} 37... Nb6+ {[%clk 0:00:51.4]} 38. Kb3
{[%clk 0:01:11.1]} 38... g5 {[%clk 0:00:50.3]} 39. a4 {[%clk 0:01:08.8]} 39...
Nd5 {[%clk 0:00:47.8]} 40. Kc4 {[%clk 0:01:01.5]} 40... Nb6+ {[%clk 0:00:47.5]}
41. Kb3 {[%clk 0:01:01.2]} 41... Nd5 {[%clk 0:00:36.4]} 42. Kc4 {[%clk
0:01:00.8]} 42... Nc7 {[%clk 0:00:37]} 43. Bh5 {[%clk 0:00:42.6]} 43... h6
{[%clk 0:00:36.1]} 44. Bf3 {[%clk 0:00:42.3]} 44... Ne6 {[%clk 0:00:31.5]} 45.
g4 {[%clk 0:00:38.6]} 45... Nd4 {[%clk 0:00:28.8]} 46. Be4 {[%clk 0:00:38.8]}
46... Ne6 {[%clk 0:00:25.2]} 47. f3 {[%clk 0:00:38.3]} 47... Nc7 {[%clk
0:00:25]} 48. Bf5 {[%clk 0:00:36.4]} 48... Na8 {[%clk 0:00:23.9]} 49. Be4 {[%clk
0:00:35.2]} 49... Nb6+ {[%clk 0:00:23.9]} 50. Kb3 {[%clk 0:00:35.5]} 50... Kc7
{[%clk 0:00:21.5]} 51. Bf5 {[%clk 0:00:33.5]} 51... Nc8 {[%clk 0:00:20.4]} 52.
Bxc8 {[%clk 0:00:26.1]} 52... Kxc8 {[%clk 0:00:20.6]} 53. Kc4 {[%clk 0:00:26.7]}
53... Kd7 {[%clk 0:00:18.3]} 54. Kc5 {[%clk 0:00:25.5]} 54... Kc7 {[%clk
0:00:18.5]} 55. b5 {[%clk 0:00:25.9]} 55... cxb5 {[%clk 0:00:18.3]} 56. axb5
{[%clk 0:00:25.7]} 56... Kb7 {[%clk 0:00:18.5]} 57. Kd5 {[%clk 0:00:25.6]} 57...
Kb6 {[%clk 0:00:18.8]} 58. Kc4 {[%clk 0:00:26]} 58... Ka5 {[%clk 0:00:17.6]} 59.
Kc5 {[%clk 0:00:26.1]} 59... Ka4 {[%clk 0:00:17.8]} 60. b6 {[%clk 0:00:23.1]}
60... axb6+ {[%clk 0:00:17.4]} 61. Kxb6 {[%clk 0:00:23.6]} 61... Kb4 {[%clk
0:00:18]} 62. Kc6 {[%clk 0:00:24.2]} 62... Kc4 {[%clk 0:00:18.6]} 63. Kd6 {[%clk
0:00:24.6]} 63... Kd4 {[%clk 0:00:19]} 64. Ke6 {[%clk 0:00:25.1]} 64... e4
{[%clk 0:00:18.6]} 65. fxe4 {[%clk 0:00:24.8]} 65... Kxe4 {[%clk 0:00:19.5]} 0-1

[Event "*** Titled Tuesday Blitz"]
[Site "Chess.com"]
[Date "2020.05.26"]
[Round "9"]
[White "Roman_Ovetchkin"]
[Black "Giraffe_Chess"]
[Result "1-0"]
[WhiteElo "2602"]
[BlackElo "2418"]
[TimeControl "180+1"]
[EndTime "11:52:53 PDT"]
[Termination "Roman_Ovetchkin won on time"]

1. d4 {[%clk 0:03:00.9]} 1... f5 {[%clk 0:02:59.2]} 2. h3 {[%clk 0:02:53.2]}
2... Nf6 {[%clk 0:02:58.6]} 3. g4 {[%clk 0:02:52.7]} 3... d5 {[%clk 0:02:59.3]}
4. g5 {[%clk 0:02:48.7]} 4... Ne4 {[%clk 0:02:59.3]} 5. Bf4 {[%clk 0:02:47.9]}
5... Nc6 {[%clk 0:02:57.7]} 6. Nf3 {[%clk 0:02:47.5]} 6... e5 {[%clk 0:02:41.7]}
7. dxe5 {[%clk 0:02:20.4]} 7... Bc5 {[%clk 0:02:35]} 8. e3 {[%clk 0:02:20.5]}
8... Qe7 {[%clk 0:02:28.8]} 9. c3 {[%clk 0:02:12.3]} 9... a6 {[%clk 0:02:21]}
10. Nbd2 {[%clk 0:02:06.8]} 10... Be6 {[%clk 0:02:17.5]} 11. Nb3 {[%clk
0:02:04.6]} 11... Bb6 {[%clk 0:02:14.4]} 12. h4 {[%clk 0:01:50.2]} 12... O-O
{[%clk 0:02:11.6]} 13. Nfd4 {[%clk 0:01:37.2]} 13... Rad8 {[%clk 0:02:07.9]} 14.
f3 {[%clk 0:01:19.4]} 14... Nc5 {[%clk 0:02:01.7]} 15. Nxc5 {[%clk 0:01:18.6]}
15... Bxc5 {[%clk 0:02:00.7]} 16. Nxc6 {[%clk 0:01:15.9]} 16... bxc6 {[%clk
0:02:01.6]} 17. Bxa6 {[%clk 0:01:14.9]} 17... Bf7 {[%clk 0:01:47.1]} 18. h5
{[%clk 0:01:03.8]} 18... Be6 {[%clk 0:01:31]} 19. Bd3 {[%clk 0:00:58.9]} 19...
Ra8 {[%clk 0:01:30.1]} 20. a4 {[%clk 0:00:51.5]} 20... Bb6 {[%clk 0:01:14.7]}
21. Qc2 {[%clk 0:00:45.3]} 21... c5 {[%clk 0:01:13.8]} 22. c4 {[%clk 0:00:45.1]}
22... d4 {[%clk 0:01:09.6]} 23. Kf2 {[%clk 0:00:41.6]} 23... Ba5 {[%clk
0:01:01.8]} 24. g6 {[%clk 0:00:28.1]} 24... h6 {[%clk 0:01:00.4]} 25. Kg3 {[%clk
0:00:23.9]} 25... Rab8 {[%clk 0:00:58.2]} 26. b3 {[%clk 0:00:21]} 26... Bc3
{[%clk 0:00:56.9]} 27. Rab1 {[%clk 0:00:20.3]} 27... Rb7 {[%clk 0:00:50.1]} 28.
Qe2 {[%clk 0:00:19.9]} 28... Rfb8 {[%clk 0:00:47.1]} 29. Bc2 {[%clk 0:00:20.4]}
29... Rb4 {[%clk 0:00:39.7]} 30. Rhd1 {[%clk 0:00:19.3]} 30... R8b7 {[%clk
0:00:35.6]} 31. e4 {[%clk 0:00:18.2]} 31... fxe4 {[%clk 0:00:34.5]} 32. Qxe4
{[%clk 0:00:17.7]} 32... Rb8 {[%clk 0:00:33.9]} 33. Rd3 {[%clk 0:00:13.5]} 33...
Rf8 {[%clk 0:00:33.2]} 34. Rxc3 {[%clk 0:00:13]} 34... dxc3 {[%clk 0:00:31.4]}
35. Be3 {[%clk 0:00:12.3]} 35... Kh8 {[%clk 0:00:29.2]} 36. Qd3 {[%clk
0:00:10.1]} 36... Bf5 {[%clk 0:00:20.8]} 37. Qxc3 {[%clk 0:00:08.6]} 37... Rbb8
{[%clk 0:00:21.2]} 38. f4 {[%clk 0:00:08]} 38... Bxc2 {[%clk 0:00:20]} 39. Qxc2
{[%clk 0:00:06.9]} 39... Rbd8 {[%clk 0:00:20.4]} 40. Rd1 {[%clk 0:00:05.9]}
40... Rxd1 {[%clk 0:00:19.9]} 41. Qxd1 {[%clk 0:00:06]} 41... Rd8 {[%clk
0:00:20.4]} 42. Qg4 {[%clk 0:00:05]} 42... Qd7 {[%clk 0:00:19.6]} 43. Qxd7
{[%clk 0:00:04.3]} 43... Rxd7 {[%clk 0:00:03.8]} 44. Bxc5 {[%clk 0:00:04.3]}
44... Kg8 {[%clk 0:00:01.3]} 45. e6 {[%clk 0:00:04.3]} 45... Rd8 {[%clk
0:00:01.8]} 46. e7 {[%clk 0:00:04]} 46... Rb8 {[%clk 0:00:02.7]} 47. b4 {[%clk
0:00:04.2]} 47... Re8 {[%clk 0:00:03.4]} 48. a5 {[%clk 0:00:04.4]} 48... Ra8
{[%clk 0:00:04]} 49. a6 {[%clk 0:00:04.8]} 49... Re8 {[%clk 0:00:04.9]} 50. b5
{[%clk 0:00:05.3]} 50... Ra8 {[%clk 0:00:05.8]} 51. f5 {[%clk 0:00:05.1]} 1-0